Cogmind - Beta 15 @@@ ROGUE MODE // 2025.09.05 @ 12:42:01 Player: Tuja Result: Destroyed by Y-45 Defender with Beam Rifle Performance ------------- Evolutions (2) 1000 Regions Visited (5) 1000 Robots Destroyed (45) 225 Value Destroyed (1361) 1361 Prototype IDs (3) 60 Alien Tech Used (0) 0 Bonus (0) 0 TOTAL SCORE: 3646 Bonus ------- None Cogmind --------- Core Integrity 0/550 Matter 209/300 Energy 7/100 System Corruption 15% Temperature Cool (9) Movement Rolling (90) Location -8/Storage Parts ------- > --- POWER (1) -------- (None) > --- PROPULSION (2) --- Armored Wheel Armored Wheel > --- UTILITY (6) ------ Medium Storage Unit Advanced Visual Processing Unit Experimental Sensor Array Improved Signal Interpreter Targeting Computer > --- WEAPON (2) ------- (None) > --- INVENTORY (10) --- Improved Terrain Scanner Peak State ------------ > --- POWER ------------ Heavy Ion Engine > --- PROPULSION ------- Aluminum Leg Armored Wheel > --- UTILITY ---------- Medium Storage Unit Improved Sensor Array Improved Signal Interpreter ECM Suite Insulated Plating > --- WEAPON ----------- Field Laser Improved Assault Rifle > --- INVENTORY -------- Light Deuterium Engine Wheel Wheel Wheel Machine Analyzer Experimental Sensor Array Improved Terrain Scanner Small Laser Heavy Assault Rifle Mining Laser [Rating: 25] Favorites ----------- Power Heavy Ion Engine Engine Heavy Ion Engine Power Core Light Nuclear Core Propulsion Light Treads Treads Light Treads Leg Aluminum Leg Wheel Armored Wheel Flight Unit Cesium-ion Thruster Utility Medium Storage Unit Device Heat Sink Storage Medium Storage Unit Processor Improved Signal Interpreter Protection Insulated Plating Weapon Improved Assault Rifle Energy Gun Field Laser Ballistic Gun Improved Assault Rifle Special Weapon Mining Laser Build | -11 -10 -9 -9 -8 -8 ------- Run | Yrd Mat Mat Min Mat Sto Slots Evolved 4 | . . 2 . 2 . Power . | . . . . . . Propulsion . | . . . . . . Utility 4 | . . 2 . 2 . Weapon . | . . . . . . Parts Attached 56 | 9 . 15 7 21 4 Power 4 | 1 . 1 . 2 . Engine 3 | 1 . 1 . 1 . Core 1 | . . . . 1 . Reactor . | . . . . . . Propulsion 18 | 4 . 2 3 7 2 Treads 7 | 2 . 2 . 3 . Leg 1 | . . . 1 . . Wheel 8 | 2 . . 2 2 2 Hover . | . . . . . . Flight 2 | . . . . 2 . Utility 20 | 2 . 7 2 7 2 Device 8 | 1 . 3 1 1 2 Storage 3 | 1 . 2 . . . Processor 6 | . . . . 6 . Hackware . | . . . . . . Protection 3 | . . 2 1 . . Artifact . | . . . . . . Weapon 14 | 2 . 5 2 5 . Energy Gun 8 | 1 . 3 1 3 . Energy Cannon . | . . . . . . Ballistic Gun 5 | 1 . 2 1 1 . Ballistic Cannon . | . . . . . . Launcher . | . . . . . . Special Weapon 1 | . . . . 1 . Impact Weapon . | . . . . . . Slashing Weapon . | . . . . . . Piercing Weapon . | . . . . . . Special Melee Weapon . | . . . . . . Unidentified Prototypes 3 | . . 2 . . 1 Parts Lost 36 | . 1 5 8 22 . Power 4 | . 1 . . 3 . Propulsion 12 | . . 2 3 7 . Utility 10 | . . 2 3 5 . Weapon 10 | . . 1 2 7 . Highest Loss Streak 14 | . 1 3 4 14 . To Critical Strikes 1 | . . . 1 . . Average Backups 8 | 2 6 8 9 7 1 Power . | . 1 1 1 . . Propulsion 2 | 1 2 3 2 2 . Utility 2 | . 2 2 2 3 1 Weapon 2 | . 1 2 3 1 . Tool/Special . | . . . . . . Unused Backups 4 | . . 3 . 1 . Power 1 | . . . . 1 . Propulsion 1 | . . 1 . . . Utility 1 | . . 1 . . . Weapon 1 | . . 1 . . . Tool/Special . | . . . . . . Average Slot Usage (%) 85 | . 93 95 78 62 60 Engine 9 | . 10 10 11 4 . Treads 14 | . 28 21 3 2 . Leg 1 | . . . 3 3 . Wheel 3 | . . . 9 5 15 Device 13 | . 11 17 10 8 11 Storage 12 | . 14 13 11 8 6 Processor 2 | . . . . 11 27 Protection 6 | . . 9 8 2 . Energy Gun 11 | . 14 14 10 6 . Ballistic Gun 8 | . 14 7 10 6 . Peak Build Rating 25 | 9 10 19 19 25 24 Average Rating 15 | 5 8 16 16 16 21 On Entrance 10 | . 9 9 19 19 8 Naked Turns . | . . . . . . Heaviest Build 30 | 14 14 29 29 30 12 Greatest Support 40 | 40 40 40 40 20 24 Greatest Overweight (x) 3 | 1 . 1 2 3 . Average Overweight (x) . | . . . 1 . . Largest Inventory Capacity 10 | 8 8 10 10 10 10 Average Capacity 9 | 7 8 9 10 9 9 Most Carried 10 | 5 8 10 10 10 4 Average Carried 8 | 2 6 8 9 7 . Final Capacity 10 | 8 8 10 10 5 10 Final Carried 10 | 5 8 10 10 5 1 Class Distribution -------------------- 56% | Mutant 43% | Scavenger-Mutant Dominant Class ---------------- Mutant | -10/Materials Scavenger-Mutant | -9/Materials Mutant | -9/Mines Mutant | -8/Materials Mutant | -8/Storage Resources | -11 -10 -9 -9 -8 -8 ----------- Run | Yrd Mat Mat Min Mat Sto Matter Collected 1101 | 244 194 277 117 269 . Remotely . | . . . . . . Salvage Created 1576 | 23 301 835 63 354 . Parts 94 | 5 10 59 4 16 . Haulers Intercepted 1 | . . 1 . . . Recyclers Shooed 2 | . . 1 . 1 . Parts Field Recycled . | . . . . . . Retrieved Matter . | . . . . . . Parts Self-Destructed . | . . . . . . Prevented . | . . . . . . Kills | -11 -10 -9 -9 -8 -8 ------- Run | Yrd Mat Mat Min Mat Sto Combat Hostiles Destroyed 37 | . 5 18 6 8 . Guns 37 | . 5 18 6 8 . Classes Destroyed 12 | 1 3 6 2 . . Tunneler 1 | 1 . . . . . Hauler 1 | . . 1 . . . Recycler 1 | . 1 . . . . Mechanic 2 | . . 2 . . . Operator 1 | . . 1 . . . Watcher 4 | . 1 3 . . . Swarmer 7 | . . 4 3 . . Grunt 20 | . 5 10 . 5 . Brawler 2 | . . 1 . 1 . Sentry 5 | . . 3 . 2 . Demolisher 1 | . . . 1 . . Assembled 2 | . . . 2 . . Best Kill Streak 8 | 1 4 8 3 3 . Combat Bots Only 8 | . 3 8 3 3 . Max Kills in Single Turn 2 | 1 1 2 1 1 . Gunslinging 1 | . . 1 . . . Exploded . | . . . . . . Melee . | . . . . . . Uniques/NPCs Destroyed . | . . . . . . Combat | -11 -10 -9 -9 -8 -8 -------- Run | Yrd Mat Mat Min Mat Sto Hostile Shots Fired 328 | . 42 74 37 162 13 Missed 70 | . 4 15 6 40 5 Hits 258 | . 38 59 31 122 8 Melee 7 | . . 3 . 4 . Projectile 251 | . 38 56 31 118 8 AOE 6 | . . . 6 . . Critical Strikes 10 | . . 2 1 6 1 Damage Taken 3663 | . 460 802 489 1794 118 Core 746 | . 35 111 38 518 44 Absorbed by Shields . | . . . . . . Core Remaining (%) 82 | 100 86 . 62 . . Volleys Fired 153 | 3 28 54 15 53 . Largest 2 | 2 2 2 2 2 . Hottest 100 | 60 60 96 86 100 . Shots Fired 281 | 6 56 108 29 82 . Gun 279 | 6 56 108 29 80 . Cannon . | . . . . . . Launcher . | . . . . . . Special 2 | . . . . 2 . Kinetic 130 | 3 28 44 14 41 . Thermal 151 | 3 28 64 15 41 . Explosive . | . . . . . . Electromagnetic . | . . . . . . Robot Hit Streak 22 | 4 10 11 10 22 . Robot Miss Streak 2 | 1 2 2 2 2 . Penetration Max . | . . . . . . Secondary Targets 5 | . . 3 2 . . Max Gunslinging Chain 1 | . . 1 1 . . Shots Hit Robots 208 | 4 41 76 20 67 . Core Hits 81 | 1 15 34 9 22 . Critical Kills . | . . . . . . Critical Parts Destroyed . | . . . . . . Critical Strikes 5 | . . 2 1 2 . Burn 5 | . . 2 1 2 . Melee Attacks . | . . . . . . Impact . | . . . . . . Slashing . | . . . . . . Piercing . | . . . . . . Sneak Attacks . | . . . . . . Combat Hostiles . | . . . . . . Follow-up Attacks . | . . . . . . Damage Inflicted 3127 | 49 489 1200 349 1040 . Guns 3037 | 49 489 1164 348 987 . Cannons . | . . . . . . Explosions . | . . . . . . Melee . | . . . . . . Ramming 66 | . . 36 1 29 . Kinetic 1389 | 26 237 469 159 498 . Thermal 1672 | 23 252 695 189 513 . Explosive . | . . . . . . Electromagnetic . | . . . . . . Impact . | . . . . . . Slashing . | . . . . . . Piercing . | . . . . . . Highest Corruption 15 | . . 3 3 15 15 Average Corruption 5 | . . 3 3 14 15 Corruption Purged . | . . . . . . Corruption Blocked . | . . . . . . Effects 28 | . . 5 11 10 2 Message Errors 5 | . . 2 3 . . Matter Fused 9 | . . 1 4 3 1 Heat Flow Errors 2 | . . 1 1 . . Energy Discharges 3 | . . 1 . 2 . Parts Fused 1 | . . . . 1 . Data Loss (minor) 4 | . . . 3 1 . Alerts 2 | . . . . 1 1 Misdirections 2 | . . . . 2 . Overload Shots . | . . . . . . Overflow Damage . | . . . . . . Projectiles . | . . . . . . Explosions . | . . . . . . Melee . | . . . . . . Knockbacks 1 | . . 1 . . . Impact 1 | . . 1 . . . Kinetic . | . . . . . . Secondary . | . . . . . . Self-Inflicted Damage . | . . . . . . Shots . | . . . . . . Rammed 25 | . . 7 1 17 . Targets Rammed 28 | . . 10 1 17 . Kicked . | . . . . . . Crushed 3 | . . 3 . . . Highest Temperature 303 | . 126 165 196 303 . Average Temperature 69 | . 57 51 55 102 . Received Heat Transfer 1458 | . 255 276 . 864 63 Effects 1 | . . . . 1 . Energy Bleed 1 | . . . . 1 . Siege Activations . | . . . . . . Martial Activations . | . . . . . . Shielding Activations . | . . . . . . Robots Disrupted . | . . . . . . Combat Hostiles . | . . . . . . Robots Corrupted . | . . . . . . Combat Hostiles . | . . . . . . Parts Fried . | . . . . . . Impact Corruptions . | . . . . . . Robots Melted . | . . . . . . Combat Hostiles . | . . . . . . Parts Melted 4 | . 1 2 . 1 . Heat Transferred 4123 | 50 575 1706 481 1311 . Parts Sabotaged . | . . . . . . Parts Stolen . | . . . . . . Parts Stripped . | . . . . . . Power Chain Reactions . | . . . . . . Alert | -11 -10 -9 -9 -8 -8 ------- Run | Yrd Mat Mat Min Mat Sto Maximum Alert Level . | . . . . . . Low Security (%) 100 | 100 100 100 100 100 100 Level 1 . | . . . . . . Level 2 . | . . . . . . Level 3 . | . . . . . . Level 4 . | . . . . . . Level 5 . | . . . . . . High Security . | . . . . . . Max Security . | . . . . . . Peak Influence 188 | 5 57 188 133 40 20 Initial 68 | . . 24 68 . . Average 37 | . 20 55 37 10 5 Influence Increases 1088 | 5 157 551 130 215 30 Destroy 0b10 Robot/C 700 | . 100 360 80 160 . Destroy 0b10 Robot/NC 50 | 5 10 35 . . . Destroy Leader 190 | . 32 98 20 40 . Successful Hack 25 | . . 25 . . . Disable Machine 30 | . . . 15 15 . Destroy Structure 3 | . . 3 . . . Partial Spotted 30 | . . . . . 30 Lose Combat Pursuer 60 | . 15 30 15 . . Influence Decreases 1068 | 5 100 432 306 215 10 Entered New Map 141 | . . 33 108 . . Time Decay 711 | 5 90 373 118 115 10 Lost Part 216 | . 10 26 80 100 . Squads Dispatched 3 | . 1 2 . . . Investigation 2 | . 1 1 . . . Extermination . | . . . . . . Reinforcement 1 | . . 1 . . . Assault . | . . . . . . Garrison . | . . . . . . Intercept . | . . . . . . Searches Triggered . | . . . . . . Construction Impeded . | . . . . . . Haulers Reinforced . | . . . . . . Active Scanning Responses . | . . . . . . Cargo Convoy Interrupts . | . . . . . . Stealth | -11 -10 -9 -9 -8 -8 --------- Run | Yrd Mat Mat Min Mat Sto Distress Signals 8 | . . 2 . 6 . Communications Jammed . | . . . . . . Distress Signals . | . . . . . . Times Spotted 85 | . 9 30 8 35 3 Peak Tracking Total 14 | . 4 6 3 14 3 Tactical Retreats 10 | . 1 2 1 6 . Traps | -11 -10 -9 -9 -8 -8 ------- Run | Yrd Mat Mat Min Mat Sto Traps Triggered 3 | . 1 . . 2 . Indirectly . | . . . . . . Trap Hack Attempts . | . . . . . . Triggered . | . . . . . . Disarmed . | . . . . . . Reprogrammed . | . . . . . . Reused . | . . . . . . Traps Extracted . | . . . . . . Installed . | . . . . . . Triggered . | . . . . . . Machines | -11 -10 -9 -9 -8 -8 ---------- Run | Yrd Mat Mat Min Mat Sto Machines Disabled 2 | . . . 1 1 . Max in Single Turn 1 | . . . 1 1 . Machines Repaired . | . . . . . . Machines Dismantled . | . . . . . . Machines Sabotaged . | . . . . . . Overloaded Fab Kills . | . . . . . . Hacking | -11 -10 -9 -9 -8 -8 --------- Run | Yrd Mat Mat Min Mat Sto Machines Accessed 8 | . 1 7 . . . Terminals 7 | . 1 6 . . . Fabricators . | . . . . . . Repair Stations 1 | . . 1 . . . Recycling Units . | . . . . . . Scanalyzers . | . . . . . . Garrison Access . | . . . . . . Total Hacks 18 | . 3 15 . . . Successful 6 | . 1 5 . . . Failed 12 | . 2 10 . . . Catastrophic 1 | . 1 . . . . Database Lockouts . | . . . . . . Manual 15 | . 3 12 . . . Terminals 17 | . 3 14 . . . Fabricators . | . . . . . . Repair Stations 1 | . . 1 . . . Recycling Units . | . . . . . . Scanalyzers . | . . . . . . Garrison Access . | . . . . . . Terminal Hacks 2 | . . 2 . . . Part Schematic 1 | . . 1 . . . Robot Analysis 1 | . . 1 . . . Fabricator Hacks . | . . . . . . Repair Station Hacks . | . . . . . . Recycling Unit Hacks . | . . . . . . Scanalyzer . | . . . . . . Garrison Access Hacks . | . . . . . . Unauthorized Hacks 4 | . 1 3 . . . Terminals 3 | . 1 2 . . . Botnet 3 | . 1 2 . . . Fabricators . | . . . . . . Repair Stations 1 | . . 1 . . . Mechanics 1 | . . 1 . . . Recycling Units . | . . . . . . Scanalyzers . | . . . . . . Garrison Access . | . . . . . . Data Cores Recovered . | . . . . . . Used . | . . . . . . Hacking Detections 7 | . 1 6 . . . Full Trace Events 1 | . . 1 . . . Feedback Events . | . . . . . . Feedback Blocked . | . . . . . . Robot Schematics Acquired . | . . . . . . Robots Built . | . . . . . . Authchips . | . . . . . . Time . | . . . . . . Total Robot Build Rating . | . . . . . . Part Schematics Acquired 1 | . . 1 . . . Parts Built . | . . . . . . Authchips . | . . . . . . Time . | . . . . . . Total Part Build Rating . | . . . . . . Parts Repaired . | . . . . . . Time . | . . . . . . Parts Recycled . | . . . . . . Recycled Matter . | . . . . . . Retrieved Matter . | . . . . . . Retrieved Components . | . . . . . . Parts Scanalyzed . | . . . . . . Part Schematics Acquired . | . . . . . . Parts Damaged . | . . . . . . Bothacking | -11 -10 -9 -9 -8 -8 ------------ Run | Yrd Mat Mat Min Mat Sto Used RIF Installer . | . . . . . . Robots Hacked . | . . . . . . Non-combat . | . . . . . . Combat . | . . . . . . Robot Hacks Applied . | . . . . . . Relay Couplers Released . | . . . . . . Fabnet Peak Effective % . | . . . . . . Robots Rewired . | . . . . . . Allies Hacked . | . . . . . . Hacks Repelled . | . . . . . . Allies | -11 -10 -9 -9 -8 -8 -------- Run | Yrd Mat Mat Min Mat Sto Total Allies . | . . . . . . Largest Group . | . . . . . . Highest-Rated Group . | . . . . . . Highest-Rated Ally . | . . . . . . Total Orders . | . . . . . . Ally Attacks . | . . . . . . Total Damage . | . . . . . . Kills . | . . . . . . Allies Corrupted . | . . . . . . Allies Melted . | . . . . . . Intel | -11 -10 -9 -9 -8 -8 ------- Run | Yrd Mat Mat Min Mat Sto Active Infowar (turns) 1382 | 9 255 740 104 241 33 Optics 69 | . . . . 36 33 Sensors 185 | . . . . 163 22 Terrain 368 | 9 255 76 . . 28 Seismic 664 | . . 664 . . . Machine Analysis 34 | . . . . 34 . ECM 297 | . . . 104 193 . Robot Analysis Total 1 | . . 1 . . . Derelict Logs Recovered . | . . . . . . Drone Launches . | . . . . . . Drone Recoveries . | . . . . . . Exploration | -11 -10 -9 -9 -8 -8 ------------- Run | Yrd Mat Mat Min Mat Sto Turns Passed 2314 | 81 310 1038 487 365 33 Spaces Moved 1124 | 52 131 458 303 156 24 Core 18 | 5 . . . 13 . Treads 635 | 13 131 458 26 7 . Legs . | . . . . . . Wheels 415 | 34 . . 277 80 24 Hover . | . . . . . . Flight 56 | . . . . 56 . Fastest Speed 32 | 50 160 160 100 32 90 Average Speed 136 | 105 160 160 128 81 90 Slowest Speed 240 | 160 160 240 240 200 90 Overloaded Moves . | . . . . . . Propulsion Burnouts . | . . . . . . Robots Hopped 6 | . . . . 6 . Potential Cave-ins . | . . . . . . Cave-ins Triggered . | . . . . . . Exploration Rate (%) 26 | 5 31 39 55 18 12 Regions Visited 5 Branch Regions 2 Pre-discovered Areas 1 | . . . 1 . . Known Exits Taken 1 | . . . . 1 . Unknown Exits Taken 4 | 1 1 1 1 . . Scrap Searched 2 | . . . 2 . . Spaces Dug . | . . . . . . Terrain Destroyed . | . . . . . . Melee . | . . . . . . Projectile . | . . . . . . AOE . | . . . . . . Terrain Rammed . | . . . . . . Walls Destroyed . | . . . . . . Machines Disabled . | . . . . . . Actions | -11 -10 -9 -9 -8 -8 --------- Run | Yrd Mat Mat Min Mat Sto Total 1579 | 68 176 646 369 284 36 Wait 166 | . 12 85 39 24 6 Move 1109 | 51 130 457 302 145 24 Hop 4 | . . . . 4 . Pick Up 32 | 5 3 12 5 7 . Fast Attach 31 | 7 1 7 2 14 . Attach 25 | . . 4 5 11 5 Detach 4 | . 1 . . 2 1 Swap 11 | 2 . 5 . 4 . Drop 16 | . 1 12 . 3 . Fire 153 | 3 28 54 15 53 . Melee . | . . . . . . Ram 1 | . . . . 1 . Kick . | . . . . . . Crush 27 | . . 10 1 16 . Escape Stasis . | . . . . . . Rewire . | . . . . . . Trap . | . . . . . . Miscellaneous . | . . . . . . Route ------- -11/Scrapyard -10/Materials -9/Materials -9/Mines (discovered 2 exits: [*Mat x2]) -8/Materials -8/Storage History --------- Turn | Location | Event 28 | -11/Scrapyard | Discovered new exit (range 15) 82 | -11/Scrapyard | Entered Materials 307 | -10/Materials | Build established: Mutant 325 | -10/Materials | Discovered new exit (range 9) 392 | -10/Materials | Entered another Materials area 392 | -9/Materials | Evolved 2 slots: Utility x2 499 | -9/Materials | Lost 3 parts (1n1u1w) 790 | -9/Materials | Build established: Scavenger-Mutant 1222 | -9/Materials | Destroyed 8 combat bots 1377 | -9/Materials | Discovered new exit (range 5) 1430 | -9/Materials | Entered Mines 1444 | -9/Mines | Met a Derelict bent on vengeance 1455 | -9/Mines | Assembled infested the area 1640 | -9/Mines | Lost 4 parts (1n2u1w) 1716 | -9/Mines | Discovered new exit (range 9) 1737 | -9/Mines | Discovered new exit (range 9) 1745 | -9/Mines | Learned location of Storage (-8) 1811 | -9/Mines | Found a damaged Exp. Sensor Array with a note attached 1814 | -9/Mines | Found Prototype Device 1891 | -9/Mines | Build established: Mutant 1917 | -9/Mines | Entered Materials 1917 | -8/Materials | Evolved 2 slots: Utility x2 2085 | -8/Materials | Lost 4 parts (1p1n1u1w) 2116 | -8/Materials | System corruption reached 10% 2180 | -8/Materials | Core integrity fell below 50% 2212 | -8/Materials | Lost 14 parts (1p4n4u5w) 2266 | -8/Materials | Discovered new exit (range 18) 2272 | -8/Materials | Core integrity fell below 20% 2282 | -8/Materials | Identified exit to Storage 2282 | -8/Materials | Entered Storage 2290 | -8/Storage | Identified Exp. Sensor Array 2310 | -8/Storage | Lost 3 parts (1p1n1w) 2315 | -8/Storage | Destroyed by Y-45 Defender with Beam Rifle Last Messages --------------- 02273_ Massive razor-sharp blades shoot up from within the floor. 02273_ Cesium-ion Thruster severed. 02273_ Machine Analyzer severed. 02274_ Acquired Lgt. Nuclear Core. 02276_ Acquired Cesium-ion Thruster. 02276_ S-10 Pest destroyed. 02277_ A-02 Transporter destroyed. 02278_ Cesium-ion Thruster destroyed. 02279_ System corrupted: Matter fused (-6). 02279_ Lgt. Nuclear Core destroyed. 02279_ K-01 Serf collects debris. 02282_ EXIT=IDENTIFIED: STORAGE LOCATION=STORAGE GOAL=ESCAPE 02290_ Identified Exp. Sensor Array. 02294_ System corrupted: IFF burst signal emitted. 02309_ System corrupted: Matter fused (-5). 02312_ Critical hit (Burn: +37). Map ----- +----------------------------------------------------+ | ??????????????#???????????????????????? | | ??????????????????????????????????????? | | ??????????????????????????????????????? | | ????############?????????? ? ???????? | | ????# ######### ???????? | | ?#??# ???????? | | ????# ???????? | | ????######## #######????????????????? | | ?????#"????# #?????? ???????????????? | | ?????#"R"??# # ?????????????????????? | | ?????#" "??# #????????#?????????????? | | ???? ?# #?????? !#?????????????? | | ??? """?# #???? #?????????????? | | ??# """ # #?? "" ??????????????? | | ??# """ # # """ """#?????????????? | | ??# + + """ R"#?????????????? | | ??# """ #Y Y# """ """#?????????????? | | ??# ??????# #?? #?????????????? | | ??? ???????# #??#?######????????????? | | ???????????# #???? #????????????? | | ???????#???# #?? #??"?????????? | | ?????#?????# # #????????????? | | ???????????# + ##???????????? | | ???????????# # Y #???????????? | | ???????????# # """"" ##???????????? | | ???????????# @/ """"" #????????????? | | ???????????# # """"" ??????????????? | | ???????????# #??######??????????????? | | ???????????# #??????????????????????? | | ???????????# #??????????????????????? | | ???????????# #??????????????????????? | | ???????????# r#??????????????????????? | | ???????????+ +??????????????????????? | | ???????????# #??????????????????????? | | ???????????# #??????????????????????? | | ???????????# #??????????????????????? | | ???????????# ???????????????????????? | | ???????????# ????????#??????????????? | | ???????????# ???????????????????????? | | ???????????#a ???????????????????????? | | ???????????# ???????????????????????? | | ???????????#g ???????????????????????? | | ???????????+ ???????????????????????? | | ???????????# ???????????????????????? | | ???????????? ???????????????????????? | | ??????????????????????????????????????? | | ??????????????????????????????????????? | | ??????????????????????????????????????? | | ??????????????????????????????????????? | | ??????????????????????????????????????? | +----------------------------------------------------+ Best States ------------- Heat Dissipation 48 Energy Generation 14 Energy Capacity 280 Matter Stores 350 Matter Capacity 350 Sight Range 20 Robot Scan Range 20 Terrain Scan Range 16 Terrain Scan Density 10 ECM Strength 1 Armor Coverage 150 Resistance: EM 15 Evasion (%) 63 Targeting Accuracy 10 Recoil Reduction 2 Item Schematics ----------------- Datajack | -9/Materials | Hacked Robot Schematics ------------------ None Fabricated ------------ Nothing Repaired ---------- Nothing Alien Tech Used ----------------- None Achievements -------------- None Challenges ------------ None Game ------ Seed StrikeBladeObliterator Manual? 0 Play Time 00:27:59 Cumulative 109.6 hours Start 2025.09.05 @ 12:12:56 End 2025.09.05 @ 12:42:01 Sessions 1 Manual Loads 0 Difficulty Rogue Special Mode None Game No. 57 Rogue 52 Adventurer 5 Explorer 0 Win Type - Total 2 Types 1/0/1/0/0/0/0/0/0/0 Lore% 59 Gallery% 50 Achievement% 48 Wizard Run 0 Options --------- Layout 1 ASCII 0 Keyboard 0 Movement Numpad Keybinds 1 Fullscreen 1 Font 24/Smallcaps Map View 50x35 Zoom Use 0% Tactical HUD 1 Map Filters NONE Filters NONE Steam 1 RUN: d54de492-3ec2-42a3-b415-fbcac5b2d469